Cogmind - Beta 11 X7 @@@ ROGUE MODE // 2021.08.21 @ 02:02:24 Player: Runia Result: Destroyed by 8R-AWN with 8R-AWN's Boregun Performance ------------- Evolutions (0) 0 Regions Visited (3) 600 Robots Destroyed (12) 60 Value Destroyed (248) 248 Prototype IDs (31) 620 Alien Tech Used (0) 0 Bonus (300) 300 TOTAL SCORE: 1828 Bonus ------- Aligned with FarCom 300 Cogmind --------- Core Integrity 0/250 Matter 202/300 Energy 264/265 System Corruption 8% Temperature Cool (0) Movement Walking (200) Ox1 Location -10/Exiles Parts ------- > --- POWER (1) -------- Improved Ion Engine > --- PROPULSION (2) --- Aluminum Leg > --- UTILITY (2) ------ Medium Storage Unit > --- WEAPON (2) ------- Grenade Launcher > --- INVENTORY (10) --- Large Storage Unit Utility Shielding Hacking Suite Trap Reconfigurator Particle Gun Latent Energy Streamer Beam Cannon Peak State ------------ > --- POWER ------------ Improved Ion Engine > --- PROPULSION ------- Aluminum Leg Aluminum Leg > --- UTILITY ---------- Improved Heat Sink Medium Storage Unit > --- WEAPON ----------- Medium Laser Latent Energy Streamer > --- INVENTORY -------- Improved Ion Engine Aluminum Leg Large Storage Unit Utility Shielding Hacking Suite Trap Reconfigurator Particle Gun Beam Cannon Grenade Launcher Datajack [Rating: 21] Favorites ----------- Power Ion Engine Engine Ion Engine Propulsion Aluminum Leg Leg Aluminum Leg Utility Improved Heat Sink Device Improved Heat Sink Storage Medium Storage Unit Weapon Medium Laser Energy Gun Medium Laser Energy Cannon Beam Cannon Launcher Grenade Launcher Special Melee Weapon Datajack Build | -11 -10 -10 -10 ------- Run | Scr Mat Min Exi Slots Evolved . | . . . . Power . | . . . . Propulsion . | . . . . Utility . | . . . . Weapon . | . . . . Parts Attached 24 | . 8 7 9 Power 3 | . . 2 1 Engine 3 | . . 2 1 Core . | . . . . Reactor . | . . . . Propulsion 3 | . . 2 1 Treads . | . . . . Leg 3 | . . 2 1 Wheel . | . . . . Hover . | . . . . Flight . | . . . . Utility 4 | . 4 . . Device 2 | . 2 . . Storage 2 | . 2 . . Processor . | . . . . Hackware . | . . . . Protection . | . . . . Artifact . | . . . . Weapon 14 | . 4 3 7 Energy Gun 3 | . 1 2 . Energy Cannon 5 | . 2 . 3 Ballistic Gun . | . . . . Ballistic Cannon . | . . . . Launcher 4 | . 1 1 2 Special Weapon . | . . . . Impact Weapon . | . . . . Slashing Weapon . | . . . . Piercing Weapon . | . . . . Special Melee Weapon 2 | . . . 2 Unidentified Prototypes . | . . . . Parts Lost 11 | . . 5 6 Power 2 | . . 1 1 Propulsion 4 | . . 2 2 Utility 1 | . . . 1 Weapon 4 | . . 2 2 Highest Loss Streak 5 | . . 5 5 Average Slot Usage (%) 97 | . 97 98 96 Engine 14 | . 14 14 14 Leg 27 | . 28 27 27 Device 12 | . 12 14 11 Storage 14 | . 14 14 14 Energy Gun 18 | . 14 22 24 Energy Cannon 8 | . 12 4 2 Naked Turns . | . . . . Heaviest Build 31 | 14 31 23 30 Greatest Support 20 | 20 20 20 20 Greatest Overweight (x) 1 | . 1 1 1 Average Overweight (x) . | . . . 1 Largest Inventory Capacity 15 | . 15 10 10 Average Capacity 9 | . 9 10 10 Most Carried 10 | . 10 10 10 Average Carried 8 | . 8 7 8 Final Capacity 10 | 8 10 10 10 Final Carried 10 | 6 10 8 7 Class Distribution -------------------- 64% | Mutant 35% | Scavenger-Mutant Dominant Class ---------------- Mutant | -10/Materials Scavenger-Mutant | -10/Mines Scavenger-Mutant | -10/Exiles Resources | -11 -10 -10 -10 ----------- Run | Scr Mat Min Exi Matter Collected 575 | 197 299 79 . Remotely . | . . . . Salvage Created 435 | . 276 46 113 Parts 26 | . 26 . . Haulers Intercepted . | . . . . Recyclers Shooed . | . . . . Parts Field Recycled . | . . . . Retrieved Matter . | . . . . Parts Self-Destructed . | . . . . Prevented . | . . . . Kills | -11 -10 -10 -10 ------- Run | Scr Mat Min Exi Combat Hostiles Destroyed 21 | . 7 7 7 Guns 4 | . . 4 . Cannons 4 | . 4 . . AOE 13 | . 3 3 7 Classes Destroyed 7 | . 6 1 . Worker 1 | . 1 . . Tunneler 1 | . 1 . . Operator 1 | . 1 . . Watcher 2 | . 2 . . Swarmer 3 | . 3 . . Grunt 4 | . 4 . . Assembled 14 | . . 7 7 Best Kill Streak 5 | . 5 3 4 Combat Bots Only 4 | . 3 3 4 Max Kills in Single Turn 4 | . 2 2 4 Gunslinging . | . . . . Exploded 4 | . 2 2 4 Melee . | . . . . Uniques/NPCs Destroyed . | . . . . Combat | -11 -10 -10 -10 -------- Run | Scr Mat Min Exi Damage Taken 1365 | . 161 595 609 Core 260 | . 51 123 86 Absorbed by Shields . | . . . . Core Remaining (%) 100 | 100 . . . Volleys Fired 57 | . 28 22 7 Largest 2 | . 2 2 1 Hottest 125 | . 110 125 60 Shots Fired 93 | . 54 32 7 Gun 54 | . 26 28 . Cannon 31 | . 26 1 4 Launcher 8 | . 2 3 3 Special . | . . . . Kinetic . | . . . . Thermal 81 | . 52 29 . Explosive 8 | . 2 3 3 Electromagnetic 4 | . . . 4 Robot Hit Streak 7 | . 7 7 7 Robot Miss Streak 4 | . 4 3 . Penetration Max . | . . . . Secondary Targets . | . . . . Shots Hit Robots 57 | . 35 17 5 Core Hits 41 | . 18 12 11 Critical Kills . | . . . . Critical Parts Destroyed . | . . . . Critical Strikes . | . . . . Melee Attacks 1 | . . . 1 Impact . | . . . . Slashing . | . . . . Piercing . | . . . . Sneak Attacks . | . . . . Combat Hostiles . | . . . . Follow-up Attacks . | . . . . Damage Inflicted 1776 | . 689 468 619 Guns 449 | . 213 236 . Cannons 343 | . 315 17 11 Explosions 984 | . 161 215 608 Melee . | . . . . Ramming . | . . . . Kinetic . | . . . . Thermal 781 | . 528 253 . Explosive 467 | . 161 215 91 Electromagnetic 528 | . . . 528 Impact . | . . . . Slashing . | . . . . Piercing . | . . . . Highest Corruption 8 | . . . 8 Average Corruption 5 | . . . 5 Corruption Purged . | . . . . Effects 3 | . . . 3 Matter Fused 1 | . . . 1 Energy Discharges 1 | . . . 1 Parts Rejected 1 | . . . 1 Overload Shots . | . . . . Overflow Damage 72 | . 18 25 29 Projectiles . | . . . . Explosions 72 | . 18 25 29 Melee . | . . . . Knockbacks . | . . . . Impact . | . . . . Kinetic . | . . . . Secondary . | . . . . Self-Inflicted Damage 182 | . . 101 81 Shots 6 | . . 3 3 Rammed . | . . . . Targets Rammed . | . . . . Kicked . | . . . . Crushed . | . . . . Highest Temperature 285 | . 285 228 22 Average Temperature 71 | . 61 106 12 Received Heat Transfer 252 | . 72 180 . Siege Activations . | . . . . Robots Corrupted . | . . . . Combat Hostiles . | . . . . Parts Fried . | . . . . Impact Corruptions . | . . . . Robots Melted . | . . . . Combat Hostiles . | . . . . Parts Melted 2 | . 2 . . Heat Transferred 1924 | . 1295 629 . Parts Sabotaged . | . . . . Parts Stolen . | . . . . Parts Stripped . | . . . . Power Chain Reactions . | . . . . Missiles Intercepted . | . . . . Latent Energy Used 428 | . . . 428 LE Corruption 8 | . . . 8 Alert | -11 -10 -10 -10 ------- Run | Scr Mat Min Exi Peak Influence 169 | . 169 20 . Initial 5 | . . 5 . Average 26 | . 41 1 . Maximum Alert Level . | . . . . Low Security (%) 100 | . 100 100 . Level 1 . | . . . . Level 2 . | . . . . Level 3 . | . . . . Level 4 . | . . . . Level 5 . | . . . . High Security . | . . . . Max Security . | . . . . Squads Dispatched . | . . . . Investigation . | . . . . Extermination . | . . . . Reinforcement . | . . . . Assault . | . . . . Garrison . | . . . . Intercept . | . . . . Construction Impeded . | . . . . Haulers Reinforced . | . . . . Active Scanning Responses . | . . . . Cargo Convoy Interrupts . | . . . . Stealth | -11 -10 -10 -10 --------- Run | Scr Mat Min Exi Distress Signals 1 | . 1 . . Communications Jammed . | . . . . Distress Signals . | . . . . Times Spotted 32 | . 15 13 4 Peak Tracking Total 9 | . 4 9 9 Tactical Retreats 1 | . . 1 . Traps | -11 -10 -10 -10 ------- Run | Scr Mat Min Exi Traps Triggered . | . . . . Indirectly . | . . . . Trap Hack Attempts . | . . . . Triggered . | . . . . Disarmed 1 | . 1 . . Reprogrammed 1 | . 1 . . Reused . | . . . . Traps Extracted . | . . . . Installed . | . . . . Triggered . | . . . . Machines | -11 -10 -10 -10 ---------- Run | Scr Mat Min Exi Machines Disabled 3 | . . . 3 Max in Single Turn 1 | . . . 1 Machines Sabotaged . | . . . . Garrisons Compromised . | . . . . Overloaded Fab Kills . | . . . . Fab Network Shutdowns . | . . . . Hacking | -11 -10 -10 -10 --------- Run | Scr Mat Min Exi Machines Accessed 7 | . 5 . 2 Terminals 5 | . 5 . . Fabricators . | . . . . Repair Stations . | . . . . Recycling Units . | . . . . Scanalyzers . | . . . . Garrison Access . | . . . . Total Hacks 19 | . 17 . 2 Successful 14 | . 12 . 2 Failed 5 | . 5 . . Catastrophic 1 | . 1 . . Database Lockouts . | . . . . Manual 8 | . 7 . 1 Terminals 17 | . 17 . . Fabricators . | . . . . Repair Stations . | . . . . Recycling Units . | . . . . Scanalyzers . | . . . . Garrison Access . | . . . . Terminal Hacks 10 | . 8 . 2 Record 1 | . . . 1 Branch Access Points 1 | . 1 . . Recycling Unit Index 1 | . 1 . . Locate Traps 3 | . 3 . . Disarm Traps 1 | . 1 . . Reprogram Traps 1 | . 1 . . Hauler Manifests 1 | . 1 . . EX-Prototype ID Bank 1 | . . . 1 Fabricator Hacks . | . . . . Repair Station Hacks . | . . . . Recycling Unit Hacks . | . . . . Scanalyzer . | . . . . Garrison Access Hacks . | . . . . Unauthorized Hacks 4 | . 4 . . Terminals 4 | . 4 . . Botnet 4 | . 4 . . Fabricators . | . . . . Repair Stations . | . . . . Recycling Units . | . . . . Scanalyzers . | . . . . Garrison Access . | . . . . Data Cores Recovered 1 | . 1 . . Used . | . . . . Hacking Detections 5 | . 5 . . Full Trace Events 1 | . 1 . . Feedback Events . | . . . . Feedback Blocked . | . . . . Robot Schematics Acquired . | . . . . Robots Built . | . . . . Matter . | . . . . Time . | . . . . Total Robot Build Rating . | . . . . Part Schematics Acquired . | . . . . Parts Built . | . . . . Matter . | . . . . Time . | . . . . Total Part Build Rating . | . . . . Parts Repaired . | . . . . Time . | . . . . Parts Recycled . | . . . . Recycled Matter . | . . . . Retrieved Matter . | . . . . Retrieved Components . | . . . . Parts Scanalyzed . | . . . . Part Schematics Acquired . | . . . . Parts Damaged . | . . . . Bothacking | -11 -10 -10 -10 ------------ Run | Scr Mat Min Exi Used RIF Installer . | . . . . Robots Hacked 1 | . . . 1 Non-combat . | . . . . Combat 1 | . . . 1 Robot Hacks Applied 1 | . . . 1 parse_system 1 | . . . 1 Relay Couplers Released . | . . . . Robots Rewired . | . . . . Allies Hacked . | . . . . Hacks Repelled . | . . . . Allies | -11 -10 -10 -10 -------- Run | Scr Mat Min Exi Total Allies . | . . . . Largest Group . | . . . . Highest-Rated Group . | . . . . Highest-Rated Ally . | . . . . Total Orders . | . . . . Ally Attacks . | . . . . Total Damage . | . . . . Kills . | . . . . Allies Corrupted . | . . . . Allies Melted . | . . . . Intel | -11 -10 -10 -10 ------- Run | Scr Mat Min Exi Robot Analysis Total . | . . . . Derelict Logs Recovered 1 | . . 1 . Drone Launches . | . . . . Drone Recoveries . | . . . . Exploration | -11 -10 -10 -10 ------------- Run | Scr Mat Min Exi Turns Passed 2199 | . 1121 673 405 Spaces Moved 1119 | 1 599 342 177 Core . | . . . . Treads . | . . . . Legs 1119 | 1 599 342 177 Wheels . | . . . . Hover . | . . . . Flight . | . . . . Fastest Speed 120 | 120 120 120 200 Average Speed 169 | 120 167 156 200 Slowest Speed 200 | 120 200 200 200 Overloaded Moves . | . . . . Propulsion Burnouts . | . . . . Robots Hopped . | . . . . Cave-ins Triggered . | . . . . Exploration Rate (%) 49 | 2 71 75 49 Regions Visited 3 Branch Regions 2 Pre-discovered Areas 2 | . . 1 1 Known Exits Taken 1 | . 1 . . Unknown Exits Taken 2 | 1 . 1 . Scrap Searched 2 | . . 2 . Spaces Dug . | . . . . Terrain Destroyed 60 | . 9 18 33 Melee . | . . . . Projectile . | . . . . AOE 60 | . 9 18 33 Terrain Rammed . | . . . . Walls Destroyed . | . . . . Machines Disabled . | . . . . Actions | -11 -10 -10 -10 --------- Run | Scr Mat Min Exi Total 1332 | . 667 448 217 Wait 101 | . 8 73 20 Move 1116 | . 598 341 177 Hop . | . . . . Pick Up 20 | . 13 4 3 Fast Attach 1 | . 1 . . Attach 12 | . 2 6 4 Detach 1 | . 1 . . Swap 11 | . 5 1 5 Drop 12 | . 11 1 . Fire 57 | . 28 22 7 Melee 1 | . . . 1 Ram . | . . . . Kick . | . . . . Crush . | . . . . Escape Stasis . | . . . . Rewire . | . . . . Trap . | . . . . Miscellaneous . | . . . . Route ------- -11/Scrapyard -10/Materials (discovered 3 exits: [*Mat x2] / *Min) -10/Mines (discovered 2 exits: [*Mat] / *Exi) -10/Exiles History --------- Turn | Location | Event 1 | -11/Scrapyard | Discovered new exit (range 0) 1 | -11/Scrapyard | Entered Materials 170 | -10/Materials | Discovered new exit (range 13) 317 | -10/Materials | Build established: Mutant 399 | -10/Materials | Discovered new exit (range 14) 401 | -10/Materials | Identified exit to Mines 713 | -10/Materials | Discovered new exit (range 13) 1122 | -10/Materials | Entered Mines 1309 | -10/Mines | Assembled infested the area 1328 | -10/Mines | Core integrity fell below 50% 1387 | -10/Mines | Lost 5 parts (1p2n2w) 1507 | -10/Mines | Learned location of Storage (-7) 1638 | -10/Mines | Joined a pair of Derelicts in attacking an 0b10 outpost 1648 | -10/Mines | Build established: Scavenger-Mutant 1772 | -10/Mines | Discovered new exit (range 8) 1787 | -10/Mines | Deemed a non-threat by the Exiles lab entrance 1787 | -10/Mines | Discovered new exit (range 5) 1795 | -10/Mines | Entered Exiles 1843 | -10/Exiles | Met 8R-AWN 1877 | -10/Exiles | Met EX-HEX 1957 | -10/Exiles | Met EX-DEC 1967 | -10/Exiles | Learned location of Zion (-6) 2003 | -10/Exiles | Met EX-BIN 2031 | -10/Exiles | Aligned with FarCom system 2033 | -10/Exiles | Given EX-Vault access code 2081 | -10/Exiles | Opened EX-Vault 2095 | -10/Exiles | Found Trap Reconfigurator 2100 | -10/Exiles | Found Latent Energy Streamer 2112 | -10/Exiles | Attacked by the Exiles 2153 | -10/Exiles | Core integrity fell below 20% 2200 | -10/Exiles | Destroyed by 8R-AWN with 8R-AWN's Boregun Last Messages --------------- Aluminum Leg destroyed. Jacked 8R-AWN... >>parse_system Reading system data... New IDs: Adv. Myomer Leg Gravity Neutralizing Apparatus Exp. Heat Sink 8R-AWN's Armor/TH 8R-AWN's Armor/EX AS-neutralizer No. 17b Exp. Targeting Computer 8R-AWN's Boregun System corrupted: Matter fused (-8). Penetrated by HV Slug. Datajack destroyed. Penetrated by HV Slug. as-94099 IFF system glitched. as-94099 destroyed. Penetrated by HV Slug. Map ----- +----------------------------------------------------+ | | | | | | | | | | | | | | | | | | | | | | | | | | | | | | | | | | | ?????????????????????#########???????????????????? | | ?????????????????????# #???????????????????? | | ?????????????????????# #???????????????????? | | ?????????????????????# !#???????????????????? | | ?????????????????????# #???????????????????? | | ????????????????????### ##???????????????????? | | ????????????????????# #????????????????????? | | ????????????????????# #????????????????????? | | ????????????????????# @ #????????????????????? | | ????????????????????# #???###??????????????? | | ????????????????????## g % #??"""""?????????????? | | ?????????????????????# ## """?????????????? | | ?????????????????????# X""?????????????? | | ?????????????????????## ## """?????????????? | | ????????????????####??# ??"""""?????????????? | | ????????????????"""""?# #??#?#??????????????? | | ???????????????"""" ## #???????????????????? | | ??????????????#""X" % #???????????????????? | | ??????????????#" #???????????????????? | | ??????????????#" ## ;#???????????????????? | | ??????????????#""""""?# % ;##########??????????? | | ???????????????#"###??; ###"""""""#??????????? | | ??????????????????????; #?#"""""""#??????????? | | ??????????????????????# %%#?#"""""""#??????????? | | ?????????????????????## ###"" """"#??????????? | | ?????????????????????#" """"#??????????? | | ?????????????????????#" """#??????????? | | ?????????????????????#" """#??????????? | | ?????????????????????#" """#??????????? | | ????????####?????????#" """#??????????? | | ???????? """????????#" """#??????????? | | ????????" """#???????## """"??????????? | | ???????"" #????????# """#??????????? | +----------------------------------------------------+ Best States ------------- Heat Dissipation 39 Energy Generation 12 Energy Capacity 265 Matter Stores 300 Matter Capacity 300 Sight Range 16 Terrain Scan Range 14 Terrain Scan Density 10 Evasion (%) 55 Item Schematics ----------------- None Robot Schematics ------------------ None Fabricated ------------ Nothing Alien Tech Used ----------------- None Achievements -------------- None Challenges ------------ None Game ------ Seed TrapStructuralBlade Manual? 0 Play Time 00:12:15 Cumulative 275.2 hours Start 2021.08.21 @ 01:50:33 End 2021.08.21 @ 02:02:24 Sessions 1 Manual Loads 0 Difficulty Rogue Special Mode None Game No. 323 Rogue 323 Adventurer 0 Explorer 0 Win Type - Total 5 Types 5/0/0/0/0/0/0/0/0 Lore% 69 Gallery% 85 Achievement% 65 Wizard Run 0 Options --------- ASCII 0 Keyboard 0 Movement Mouse Keybinds 1 Fullscreen 2 Font 24/Smallcaps Map View 76x50 Tactical HUD 1 Map Filters NONE Filters NONE Steam 1 RUN: 8178f926-28ab-4871-a7e7-b0d774daf6ce